fUSD/lending_fUSD_20251109
["ID","MTS","AMOUNT","RATE_DAILY","PERIOD"]
[393497862,1762727447394,-199.20695412,0.0003788,2]
[393497863,1762727447404,-500.0,0.00037947,30]
[393497864,1762727447413,-1241.77807568,0.00037958,2]
[393497865,1762727447423,-603.0,0.00037969,7]
[393497866,1762727447432,-85554.62339636,0.0003797,2]
[393497867,1762727447447,-2611.31110026,0.0003797,2]
[393497868,1762727447462,-178.93687492,0.00038,2]
[393497869,1762727447472,-181.18098274,0.00038,2]
[393497870,1762727447481,-2000.0,0.00038,2]
[393497871,1762727447494,-500.0,0.00038,5]
[393497872,1762727447504,-502.02778526,0.00038,120]
[393497873,1762727447513,-1000.0,0.00038,60]
[393497874,1762727447522,-168.0,0.00038069,7]
[393497875,1762727447532,-239.05,0.00038092,14]
[393497876,1762727447541,-245.03,0.00038113,2]
[393497877,1762727447551,-155.560585,0.00038124,29]
[393497878,1762727447561,-152.749299,0.00038124,29]
[393497879,1762727447572,-151.58108702,0.00038186,2]
[393497880,1762727447581,-214.5722858,0.00038221,30]
[393497881,1762727447593,-285.4277142,0.00038221,30]
[393497882,1762727447602,-13061.88570931,0.00038224,4]
[393497883,1762727447616,-565.03199929,0.00038224,4]
[393497884,1762727447630,-11109.1284371,0.00038224,4]
[393497885,1762727447646,-1000.0,0.0003824,2]
[393497886,1762727447655,-1984.80073808,0.00038252,10]
[393497887,1762727447664,-22149.3716167,0.00038252,4]
[393497888,1762727447679,-1160.00000002,0.00038252,4]
[393498066,1762727685979,500.0,0.00039247,120]
[393498067,1762727686196,500.0,0.00039247,120]
[393498068,1762727686429,500.0,0.00039247,120]
[393498069,1762727686879,500.0,0.00039247,120]
[393498103,1762727863354,225.34613903,0.000301,120]
[393498358,1762728631850,-466.0886,0.0003074,2]
[393498359,1762728631860,-151.0,0.00030837,7]
[393498360,1762728631871,-200.29048168,0.00030839,2]
[393498361,1762728631881,-500.0,0.00030839,2]
[393498363,1762728631891,-162.51359959,0.00030839,2]
[393498365,1762728631902,-297.78125768,0.00030839,2]
[393498377,1762728637544,-202.21874232,0.00030839,2]
[393498378,1762728637554,-309.42425758,0.00030839,2]
[393498379,1762728637599,-1290.57574242,0.00030839,2]
[393498380,1762728637614,-15146.94425572,0.0003084,2]
[393498423,1762728639540,-132170.20892836,0.0003084,2]
[393498424,1762728639615,-336.54179873,0.0003084,2]
[393498425,1762728639627,-285.64071394,0.0003084,2]
[393498426,1762728639739,-69516.58870325,0.0003084,2]
[393498427,1762728639749,-673.64609467,0.00032086,2]
[393498428,1762728639758,-1402.389,0.00032186,31]
[393498429,1762728639767,-175.977,0.00032186,31]
[393498430,1762728639778,-673.64609464,0.00032871,2]
[393498431,1762728639788,-500.0,0.00032877,7]
[393498432,1762728639797,-425.65114195,0.00032877,7]
[393498433,1762728639806,-500.0,0.00032877,7]
[393498434,1762728639816,-500.0,0.00032877,7]
[393498435,1762728639825,-500.0,0.00032877,7]
[393498436,1762728639835,-500.0,0.00032877,7]
[393498437,1762728639845,-2240.0,0.00033348,3]
[393498438,1762728639854,-154.71348288,0.00033452,2]
[393498439,1762728639868,-154.71348288,0.00033452,2]
[393498441,1762728639878,-673.64609464,0.00033656,2]
[393498443,1762728639887,-297.67941727,0.00033814,2]
[393498445,1762728639897,-343.5309302,0.00033814,2]
[393498447,1762728639908,-500.0,0.00034266,120]
[393498448,1762728639918,-500.0,0.00034266,7]
[393498449,1762728639927,-500.0,0.00034266,120]
[393498450,1762728639936,-199.0,0.00034266,7]
[393498451,1762728639946,-500.0,0.00034266,30]
[393498452,1762728639955,-223.81,0.00034267,14]
[393498453,1762728639963,-339.54139094,0.00034267,7]
[393498454,1762728639973,-500.0,0.00034267,7]
[393498455,1762728639982,-500.0,0.00034267,7]
[393498456,1762728639991,-500.0,0.00034267,7]
[393498457,1762728640000,-500.0,0.00034267,7]
[393498459,1762728640010,-500.0,0.00034267,7]
[393498460,1762728640019,-500.0,0.00034267,7]
[393498461,1762728640028,-500.0,0.00034267,7]
[393498462,1762728640038,-500.0,0.00034267,7]
[393498463,1762728640048,-500.0,0.00034267,7]
[393498464,1762728640057,-500.0,0.00034267,7]
[393498465,1762728640067,-500.0,0.00034267,7]
[393498466,1762728640077,-500.0,0.00034267,7]
[393498467,1762728640088,-500.0,0.00034267,7]
[393498468,1762728640098,-500.0,0.00034267,7]
[393498469,1762728640107,-510.17653817,0.00034267,7]
[393498470,1762728640116,-500.0,0.00034267,7]
[393498471,1762728640129,-500.0,0.00034267,7]
[393498472,1762728640139,-500.0,0.00034267,7]
[393498473,1762728640149,-824.18199952,0.00034267,7]
[393498474,1762728640158,-673.64609464,0.00034441,2]
[393498475,1762728640168,-223.81,0.00034541,14]
[393498476,1762728640178,-172.04,0.00034789,30]
[393498477,1762728640187,-223.81,0.00034815,14]
[393498478,1762728640197,-223.81,0.00035089,14]
[393498479,1762728640207,-239.56426196,0.00035207,3]
[393498480,1762728640216,-223.84,0.00035363,14]
[393498481,1762728640226,-165.58987175,0.00035616,2]
[393498482,1762728640236,-3135.0,0.00036062,3]
[393498483,1762728640245,-1000.0,0.00036412,2]
[393498484,1762728640255,-201.9,0.00036423,2]
[393498485,1762728640264,-164.72,0.00036517,120]
[393498486,1762728640274,-679.62643628,0.0003667,2]
[393498487,1762728640283,-5000.0,0.0003678,2]
[393498488,1762728640292,-934.39,0.00036794,2]
[393498489,1762728640301,-999.0,0.00036841,3]
[393498490,1762728640310,-200.0,0.00037144,2]
[393498491,1762728640320,-820.0,0.00037296,2]
[393498492,1762728640329,-559.0,0.00037296,2]
[393498493,1762728640338,-500.0,0.0003735,5]
[393498494,1762728640348,-500.0,0.00037525,5]
[393498495,1762728640357,-500.0,0.00037618,7]
[393498496,1762728640366,-500.0,0.00037618,7]
[393498497,1762728640376,-517.7045041,0.00037618,7]
[393498498,1762728640386,-152.87519304,0.00037618,10]
[393498499,1762728640396,-150.0,0.00037618,7]
[393498500,1762728640405,-150.0,0.00037618,7]
[393498501,1762728640414,-151.0,0.0003767,14]
[393498502,1762728640424,-1787.95,0.00037673,30]
[393498503,1762728640434,-1787.95,0.00037673,30]
[393498504,1762728640443,-1787.95,0.00037673,30]
[393498505,1762728640452,-1787.95,0.00037673,30]
[393498506,1762728640622,-150.0,0.00037755,7]
[393498507,1762728640632,-168.0,0.00037801,2]
[393498508,1762728640641,-168.0,0.00037853,2]
[393498509,1762728640651,-200.0,0.00037892,7]
[393498510,1762728640664,-500.0,0.00037917,5]
[393498511,1762728640674,-200.0,0.00037933,10]
[393498512,1762728640683,-200.0,0.00037934,10]
[393498513,1762728640693,-200.0,0.00037934,10]
[393498514,1762728640703,-1787.95,0.00037947,30]
[393498515,1762728640713,-1787.95,0.00037947,30]
[393498516,1762728640723,-13709.7980649,0.00037992,2]
[393498517,1762728640732,-428.1,0.00038,2]
[393498518,1762728640741,-633.0,0.0003807,20]
[393498519,1762728640751,-500.0,0.00038167,5]
[393498520,1762728640760,-500.0,0.00038167,5]
[393498521,1762728640770,-500.0,0.00038167,5]
[393498522,1762728640780,-500.0,0.00038167,5]
[393498523,1762728640789,-500.0,0.00038167,5]
[393498524,1762728640799,-500.0,0.00038167,5]
[393498525,1762728640809,-882.26,0.00038167,5]
[393498526,1762728640818,-151.58108702,0.00038215,2]
[393498527,1762728640828,-1787.95,0.00038221,30]
[393498528,1762728640838,-1787.95,0.00038221,30]
[393498529,1762728640848,-1612.99081926,0.00038232,2]
[393498530,1762728640858,-463.72022304,0.0003825,30]
[393498531,1762728640868,-500.0,0.0003825,30]
[393498532,1762728640877,-5800.0,0.00038264,2]
[393498533,1762728640887,-400.0,0.0003827,2]
[393498535,1762728640897,-1145.15868508,0.00038272,2]
[393498537,1762728640914,-4654.84131492,0.00038272,2]
[393498538,1762728640923,-5800.0,0.00038281,2]
[393498539,1762728640932,-5800.0,0.00038289,2]
[393498540,1762728640947,-5800.0,0.00038298,2]
[393498541,1762728640956,-5800.0,0.00038306,2]
[393498542,1762728640965,-5800.0,0.00038315,2]
[393498543,1762728640974,-5800.0,0.00038323,2]
[393498544,1762728640983,-2353.4519789,0.0003833,4]
[393498545,1762728640995,-21959.4461208,0.0003833,4]
[393498546,1762728641004,-2399.3228664,0.00038332,2]
[393498547,1762728641015,-3400.6771336,0.00038332,2]
[393498548,1762728641025,-1612.9908192,0.00038334,2]
[393498549,1762728641035,-5800.0,0.0003834,2]
[393498550,1762728641045,-5800.0,0.00038349,2]
[393498551,1762728641054,-5800.0,0.00038353,2]
[393498552,1762728641063,-269.6201604,0.00038356,2]
[393498553,1762728641072,-5800.0,0.00038357,2]
[393498554,1762728641081,-5800.0,0.00038362,2]
[393498555,1762728641092,-1612.9908192,0.00038436,2]
[393498556,1762728641101,-172.04,0.00038451,30]
[393498557,1762728641111,-633.0,0.00038463,20]
[393498558,1762728641120,-1787.95,0.00038495,30]
[393498559,1762728641129,-1787.95,0.00038495,30]
[393498560,1762728641139,-1612.9908192,0.00038539,2]
[393498561,1762728641148,-168.0,0.0003861,2]
[393498562,1762728641158,-1612.9908192,0.00038641,2]
[393498563,1762728641167,-151.58108702,0.00038684,2]
[393498564,1762728641176,-1612.9908192,0.00038743,2]
[393498565,1762728641185,-1787.95,0.00038769,30]
[393498566,1762728641194,-1787.95,0.00038769,30]
[393498567,1762728641204,-872.10433112,0.000388,60]
[393498568,1762728641214,-156.203306,0.00038825,60]
[393498569,1762728641224,-155.560586,0.00038825,60]
[393498570,1762728641233,-152.749299,0.00038825,60]
[393498571,1762728641242,-162.302964,0.00038825,60]
[393498572,1762728641252,-162.302964,0.00038825,60]
[393498573,1762728641262,-633.0,0.00038855,20]
[393498574,1762728641272,-169.14,0.00038865,2]
[393498575,1762728641281,-1587.8405904,0.0003889,11]
[393498576,1762728641291,-166.97692258,0.00038895,15]
[393498577,1762728641300,-150.0,0.00038978,7]
[393498578,1762728641310,-168.0,0.00038983,2]
[393498579,1762728641319,-24312.8980997,0.00038985,4]
[393498580,1762728641327,-36739.43451342,0.0003899,4]
[393498581,1762728641374,-502.8546615,0.0003899,4]
[393498584,1762728642777,-673.64609464,0.00035226,2]
[393498585,1762728642788,-1612.9908192,0.00038845,2]
[393498586,1762728642797,-238.14984018,0.0003899,4]
[393498587,1762728642809,-1662.51667918,0.0003899,4]
[393498588,1762728642820,-969.19862252,0.0003899,4]
[393498589,1762728642832,-17970.7969,0.0003899,4]
[393498590,1762728643010,-82.87537985,0.0003899,4]
[393498595,1762728645877,-172.51744828,0.000372,120]
[393498596,1762728645886,-1612.9908192,0.00038948,2]
[393498597,1762728645896,-34563.65128572,0.0003899,4]
[393498598,1762728645907,-2525.4,0.0003899,4]
[393498599,1762728645936,-673.64609464,0.00036012,2]
[393498600,1762728645946,-666.61007466,0.0003899,4]
[393498601,1762728646166,-1330.10444177,0.0003899,4]
[393498602,1762728646176,-4390.0,0.00038996,5]
[393498603,1762728646186,-444.81816065,0.00039,29]
[393498604,1762728646195,-9575.67886509,0.00039,2]
[393498605,1762728646226,-425.6590066,0.00039,2]
[393498672,1762729535962,150.49304823,0.00039253,120]
[393498673,1762729555506,440.23026783,0.00039253,120]
[393498676,1762729738839,199.95,0.00018,2]
[393498694,1762729751276,237.1,0.00013699,2]
[393498695,1762729768138,-150.83,0.00019328,2]
[393498696,1762729768160,-237.1,0.00020187,2]
[393498697,1762729768181,-150.83,0.0002036,2]
[393498698,1762729768204,-150.83,0.00021391,2]
[393498699,1762729768229,-150.83,0.00022423,2]
[393498700,1762729768249,-150.83,0.00023455,2]
[393498701,1762729768270,-150.83,0.00024486,2]
[393498702,1762729768291,-150.83,0.00025518,2]
[393498703,1762729768310,-150.83,0.0002655,2]
[393498704,1762729768329,-237.1,0.00026676,2]
[393498705,1762729768349,-150.83,0.00027581,2]
[393498711,1762729831857,-150.83,0.00028613,2]
[393498712,1762729831867,-150.83,0.00029645,2]
[393498713,1762729831876,-207.74071868,0.00029972,2]
[393498714,1762729831886,-150.83,0.00030676,2]
[393498715,1762729831895,-150.83,0.00031708,2]
[393498716,1762729831904,-150.83,0.0003274,2]
[393498717,1762729831913,-260.0,0.00033,14]
[393498718,1762729831923,-260.0,0.00033151,30]
[393498719,1762729831934,-237.1,0.00033165,2]
[393498720,1762729831943,-150.83,0.00033772,2]
[393498721,1762729831952,-1853.65764,0.00033966,2]
[393498722,1762729831962,-260.0,0.00034521,30]
[393498723,1762729831974,-150.83,0.00034803,2]
[393498724,1762729831984,-490.0,0.00035056,3]
[393498725,1762729831994,-1121.912,0.00035057,40]
[393498726,1762729832003,-1600.0,0.00035057,3]
[393498727,1762729832013,-300.0,0.00035057,3]
[393498728,1762729832023,-325.0723491,0.00035057,7]
[393498729,1762729832032,-6490.06696226,0.00035058,2]
[393498730,1762729832045,-10500.0,0.00035058,2]
[393498731,1762729832061,-8943.45903,0.00035058,2]
[393498732,1762729832071,-1475.03204469,0.00035058,2]
[393498733,1762729832082,-317.64574802,0.00035058,2]
[393498734,1762729832093,-28798.96621503,0.00035058,2]
[393498735,1762729832102,-288.21779311,0.00035073,5]
[393498736,1762729832115,-501.90516323,0.00035073,5]
[393498737,1762729832125,-500.0,0.00035073,5]
[393498738,1762729832135,-433.21534504,0.00035073,5]
[393498739,1762729832144,-500.0,0.00035073,5]
[393498740,1762729832154,-473.21088675,0.00035073,5]
[393498741,1762729832163,-500.0,0.00035073,5]
[393498742,1762729832172,-500.0,0.000351,5]
[393498743,1762729832181,-500.0,0.000351,5]
[393498744,1762729832191,-500.0,0.000353,5]
[393498745,1762729832200,-500.0,0.000354,5]
[393498746,1762729832209,-503.10126105,0.000354,5]
[393498747,1762729832219,-311.4094349,0.000354,5]
[393498748,1762729832228,-410.35,0.00035418,120]
[393498749,1762729832239,-260.63,0.00035545,2]
[393498750,1762729832248,-1000.0,0.00035621,5]
[393498751,1762729832256,-500.0,0.00035621,5]
[393498752,1762729832265,-1000.0,0.00035621,5]
[393498753,1762729832274,-1000.0,0.00035623,2]
[393498754,1762729832283,-250.0,0.00035627,2]
[393498755,1762729832292,-1000.0,0.00035627,2]
[393498756,1762729832302,-1000.0,0.00035648,5]
[393498758,1762729832311,-150.83,0.00035835,2]
[393498760,1762729832320,-1000.0,0.00036225,2]
[393498761,1762729832329,-262.0,0.00036247,30]
[393498762,1762729832338,-180.18,0.00036647,2]
[393498763,1762729832347,-150.83,0.00036867,2]
[393498764,1762729832356,-1000.0,0.00037583,2]
[393498765,1762729832365,-1218.23,0.00037673,30]
[393498766,1762729832374,-1218.23,0.00037673,30]
[393498767,1762729832384,-1218.23,0.00037673,30]
[393498768,1762729832393,-1218.23,0.00037673,30]
[393498769,1762729832402,-500.0,0.000377,5]
[393498770,1762729832411,-884.0,0.00037736,3]
[393498771,1762729832420,-150.83,0.00037898,2]
[393498772,1762729832429,-1218.23,0.00037947,30]
[393498773,1762729832438,-1218.23,0.00037947,30]
[393498774,1762729832447,-500.0,0.00038067,2]
[393498775,1762729832457,-593.0,0.0003807,20]
[393498776,1762729832466,-31209.9683,0.00038206,2]
[393498777,1762729832475,-165.23094091,0.00038206,2]
[393498778,1762729832484,-1218.23,0.00038221,30]
[393498779,1762729832493,-1218.23,0.00038221,30]
[393498780,1762729832502,-1000.0,0.00038248,5]
[393498781,1762729832511,-593.0,0.00038463,20]
[393498782,1762729832520,-1218.23,0.00038495,30]
[393498783,1762729832529,-1218.23,0.00038495,30]
[393498784,1762729832538,-260.0,0.00038663,90]
[393498785,1762729832547,-200.0,0.00038688,20]
[393498786,1762729832556,-1218.23,0.00038769,30]
[393498787,1762729832566,-1218.23,0.00038769,30]
[393498788,1762729832575,-502.65576552,0.00038796,5]
[393498789,1762729832584,-3564.189543,0.00038847,2]
[393498790,1762729832593,-593.0,0.00038855,20]
[393498791,1762729832602,-153.17754681,0.000389,2]
[393498792,1762729832611,-324.06224451,0.000389,2]
[393498793,1762729832620,-322.59816384,0.000389,2]
[393498794,1762729832631,-324.06224444,0.00038928,2]
[393498795,1762729832640,-322.59816384,0.00038928,2]
[393498796,1762729832648,-1000.0,0.00038941,2]
[393498797,1762729832657,-324.06224444,0.00038956,2]
[393498798,1762729832666,-322.59816384,0.00038956,2]
[393498799,1762729832675,-166.97692256,0.00038958,15]
[393498800,1762729832684,-500.0,0.00038961,2]
[393498801,1762729832694,-500.0,0.00038973,5]
[393498802,1762729832704,-324.06224444,0.00038984,2]
[393498803,1762729832714,-322.59816384,0.00038984,2]
[393498804,1762729832723,-170.38349046,0.00038989,15]
[393498805,1762729832732,-315.38451648,0.00038989,15]
[393498806,1762729832741,-187.45981376,0.00038989,15]
[393498807,1762729832750,-23883.9430147,0.0003899,4]
[393498808,1762729832759,-889.08,0.00038999,5]
[393498809,1762729832768,-879.36,0.00038999,5]
[393498810,1762729832777,-876.48,0.00038999,5]
[393498811,1762729832786,-872.21,0.00038999,5]
[393498812,1762729832795,-890.49,0.00038999,5]
[393498813,1762729832804,-199.0,0.00038999,7]
[393498814,1762729832813,-500.0,0.00038999,30]
[393498815,1762729832822,-100895.81195904,0.00039,2]
[393498816,1762729832834,-1447.06018569,0.00039,2]
[393498817,1762729832846,-4345.45707973,0.00039,2]
[393498818,1762729832856,-54376.85995605,0.00039,2]
[393498819,1762729832868,-25105.50997756,0.00039,2]
[393498820,1762729832882,-264.98779993,0.00039,2]
[393498821,1762729832891,-151.0,0.00039,120]
[393498822,1762729832900,-151.0,0.00039,120]
[393498823,1762729832909,-151.0,0.00039,120]
[393498824,1762729832920,-324.06224444,0.00039012,2]
[393498825,1762729832929,-322.59816384,0.00039012,2]
[393498826,1762729832939,-1000.0,0.00039013,7]
[393498827,1762729832948,-860.99,0.00039024,5]
[393498828,1762729832957,-871.23,0.00039031,5]
[393498829,1762729832967,-324.06224444,0.00039041,2]
[393498830,1762729832979,-322.59816384,0.00039041,2]
[393498831,1762729832988,-869.08,0.00039042,5]
[393498832,1762729832998,-1218.23,0.00039043,30]
[393498833,1762729833008,-1218.23,0.00039043,30]
[393498834,1762729833019,-23883.9430147,0.00039043,4]
[393498835,1762729833028,-180.51082,0.00039053,120]
[393498836,1762729833037,-151.0,0.00039053,120]
[393498837,1762729833047,-151.0,0.00039053,120]
[393498838,1762729833058,-151.0,0.00039053,120]
[393498839,1762729833068,-151.0,0.00039053,120]
[393498840,1762729833077,-58518.20820195,0.00039053,30]
[393498841,1762729833087,-155.751926,0.00039054,120]
[393498842,1762729833096,-150.0,0.00039058,7]
[393498843,1762729833106,-205.88555731,0.0003906,7]
[393498844,1762729833115,-964.83330762,0.00039061,7]
[393498845,1762729833126,-35.16669238,0.00039061,7]
[393498846,1762729833136,-151.0,0.00039064,120]
[393498847,1762729833146,-1130.34775333,0.00039066,3]
[393498856,1762729838008,-226.810311,0.00039,120]
[393498857,1762729838019,-869.65224667,0.00039066,3]
[393498858,1762729838029,-2000.0,0.00039066,3]
[393498859,1762729838039,-151.0,0.00039066,120]
[393498860,1762729838049,-151.0,0.00039066,120]
[393498861,1762729838060,-324.06224444,0.00039069,2]
[393498862,1762729838070,-322.59816384,0.00039069,2]
[393498863,1762729838080,-324.06224444,0.00039097,2]
[393498864,1762729838089,-322.59816384,0.00039097,2]
[393498865,1762729838099,-162.42354379,0.000391,7]
[393498866,1762729838109,-324.06224444,0.00039125,2]
[393498867,1762729838118,-322.59816384,0.00039125,2]
[393498868,1762729838128,-23883.9430147,0.00039143,4]
[393498869,1762729838138,-5000.0,0.00039153,30]
[393498870,1762729838148,-153.17754681,0.00039153,2]
[393498871,1762729838157,-6272.16363672,0.00039153,2]
[393498872,1762729838167,-1606.46033519,0.00039153,2]
[393498873,1762729838176,-324.06224444,0.00039153,2]
[393498874,1762729838186,-166.97692256,0.00039153,15]
[393498875,1762729838196,-322.59816384,0.00039153,2]
[393498876,1762729838205,-1151.17956998,0.00039153,6]
[393498877,1762729838215,-1151.17956997,0.00039153,6]
[393498878,1762729838224,-154.14367874,0.00039154,2]
[393498879,1762729838234,-1311.2664461,0.00039154,2]
[393498880,1762729838243,-165.86732143,0.00039154,12]
[393498881,1762729838253,-400.0,0.0003917,2]
[393498882,1762729838263,-400.0,0.0003917,2]
[393498884,1762729838272,-300.0,0.00039185,94]
[393498886,1762729838281,-631.3022254,0.00039195,60]
[393498888,1762729838291,-424.0,0.000392,5]
[393498890,1762729838300,-525.12152198,0.000392,120]
[393498892,1762729838309,-1000.0,0.00039209,7]
[393498894,1762729838318,-2864.06069026,0.00039222,30]
[393498896,1762729838327,-1043.0,0.00039233,120]
[393498898,1762729838337,-155.560586,0.00039243,30]
[393498900,1762729838346,-152.749299,0.00039243,30]
[393498902,1762729838355,-281.77206102,0.00039244,2]
[393498904,1762729838365,-281.77206102,0.00039244,2]
[393498906,1762729838374,-281.77206102,0.00039244,2]
[393498908,1762729838385,-160.75793076,0.00039247,10]
[393498910,1762729838395,-300.0,0.00039247,10]
[393498911,1762729838404,-387.85351644,0.00039247,10]
[393498912,1762729838414,-300.0,0.00039247,10]
[393498913,1762729838425,-300.0,0.00039247,10]
[393498914,1762729838434,-666.0,0.00039247,10]
[393498915,1762729838443,-593.0,0.00039248,20]
[393498916,1762729838453,-220.0,0.00039249,60]
[393498917,1762729838462,-151.0,0.00039251,120]
[393498918,1762729838472,-201.840543,0.00039251,120]
[393498919,1762729838481,-2000.0,0.00039251,120]
[393498920,1762729838491,-500.0,0.00039251,120]
[393498921,1762729838500,-477.99034883,0.00039252,10]
[393498922,1762729838509,-478.20968403,0.00039252,3]
[393498923,1762729838519,-264.98779993,0.00039252,2]
[393498924,1762729838532,-264.98779993,0.00039252,2]
[393498925,1762729838541,-150.0,0.00039252,20]
[393498926,1762729838551,-1999.0,0.00039252,120]
[393498927,1762729838560,-151.0,0.00039253,120]
[393498928,1762729838570,-151.0,0.00039253,120]
[393498929,1762729838579,-151.0,0.00039253,120]
[393498930,1762729838589,-151.0,0.00039253,120]
[393498931,1762729838598,-151.0,0.00039253,120]
[393498932,1762729838608,-151.0,0.00039253,120]
[393498933,1762729838617,-151.0,0.00039253,120]
[393498934,1762729838627,-151.0,0.00039253,120]
[393498935,1762729838636,-151.0,0.00039253,120]
[393498936,1762729838646,-259.143033,0.00039253,120]
[393498937,1762729838655,-151.0,0.00039253,120]
[393498938,1762729838665,-151.0,0.00039253,120]
[393498939,1762729838674,-151.0,0.00039253,120]
[393498940,1762729838683,-243.735608,0.00039253,120]
[393498941,1762729838692,-165.23094091,0.00039253,2]
[393498942,1762729838703,-165.23094091,0.00039253,2]
[393498943,1762729838713,-165.23094091,0.00039253,2]
[393498944,1762729838722,-165.23094091,0.00039253,2]
[393498945,1762729838732,-222.40908032,0.00039254,29]
[393498946,1762729838741,-151.0,0.00039254,120]
[393498947,1762729838750,-151.0,0.00039254,120]
[393498948,1762729838759,-151.0,0.00039254,120]
[393498949,1762729838769,-151.0,0.00039254,120]
[393498950,1762729838779,-151.0,0.00039254,120]
[393498951,1762729838789,-151.0,0.00039254,120]
[393498952,1762729838799,-153107.93448427,0.00039254,7]
[393498953,1762729838811,-12067.55043371,0.00039254,7]
[393498954,1762729838822,-19893.00078722,0.00039254,7]
[393498955,1762729838833,-255.74529052,0.00039254,7]
[393498956,1762729838844,-6800.0,0.00039254,7]
[393498957,1762729838855,-1682.01965938,0.00039254,7]
[393498959,1762729839856,-8486.86026841,0.00039254,7]
[393498960,1762729839868,-6840.1254498,0.00039254,7]
[393498961,1762729840039,-5483.1126143,0.00039254,7]
[393498970,1762729842915,-7215.2404,0.00039254,7]
[393498971,1762729842929,-1012.13556112,0.00039254,7]
[393498972,1762729843004,-267.93741724,0.00039254,7]
[393498973,1762729843118,-31241.27540709,0.00039254,7]
[393498974,1762729843195,-488.5195381,0.00039254,7]
[393498975,1762729843207,-392.42322,0.00039254,7]
[393498976,1762729843218,-159230.96722358,0.00039254,7]
[393498977,1762729843229,-1595.85840814,0.00039254,7]
[393498978,1762729843239,-1370.5957456,0.00039254,7]
[393498979,1762729843250,-519.230507,0.00039254,7]
[393498980,1762729843261,-1007.9992225,0.00039254,7]
[393498981,1762729843272,-544.63002258,0.00039254,7]
[393498999,1762729846151,-4957.99249259,0.00039254,7]
[393499000,1762729846394,-6116.59319739,0.00039254,7]
[393499001,1762729846485,-489.42126321,0.00039254,7]
[393499002,1762729846497,-349.63484659,0.00039254,7]
[393499003,1762729846508,-595.70799982,0.00039254,7]
[393499013,1762729984244,400.0,0.00039254,120]
[393499017,1762730116259,400.0,0.00039254,120]
[393499052,1762730448986,468.19111124,0.00039264,60]
[393499085,1762730707912,856991.70300792,0.00018,2]
[393499095,1762730791989,250.0,0.00017,2]
[393499096,1762730814106,-200.36678673,0.0002,2]
[393499097,1762730814185,5000.0,0.000162,5]
[393499099,1762730868977,400.0,0.00039264,120]
[393499100,1762730872226,92584.20847393,0.00015,2]
[393499105,1762730916786,190867.38,0.0001799,2]
[393499106,1762730917457,-195.10775816,0.0001901,7]
[393499107,1762730917612,76215.1823926,0.00015,3]
[393499111,1762730970111,-159.46077124,0.0001901,7]
[393499112,1762730970131,-824.43321327,0.0002,2]
[393499113,1762730970150,-1391.73273749,0.0002,5]
[393499127,1762731031996,-385.94120146,0.0002,5]
[393499128,1762731032005,-76.16945567,0.0002,7]
[393499129,1762731032018,-1871.80772272,0.0002,7]
[393499130,1762731032030,-955.32393111,0.0002,7]
[393499131,1762731032039,-523.1436723,0.0002,7]
[393499132,1762731032048,-160.0,0.00021,7]
[393499133,1762731032058,-504.79395128,0.00025,7]
[393499134,1762731032067,-300.0,0.00027389,2]
[393499135,1762731032077,-1200.0,0.00027389,2]
[393499136,1762731032087,-244.0,0.00027389,2]
[393499137,1762731032096,-4338.24048303,0.0002739,7]
[393499138,1762731032106,-1680.0,0.00029729,2]
[393499139,1762731032115,-150.0,0.000301,30]
[393499140,1762731032125,-182.50894319,0.000301,2]
[393499141,1762731032134,-955.0,0.00032268,3]